bitfinex-derivatives/quotes_ETHF0:USTF0_20260131
["timestamp","ask_amount","ask_price","bid_price","bid_amount"]
[1769878289131,3.86009797,2504.1,2502.1,3.96363125]
[1769878289326,3.86009797,2504.1,2502.2,3.9606602]
[1769878289633,3.86009797,2504.1,2502.5,6.3036602]
[1769878289824,3.86009797,2504.1,2502.7,3.9606602]
[1769878290024,2.31384183,2505.2,2502.9,3.9606602]
[1769878290229,3.86009797,2505.1,2502.5,3.9606602]
[1769878290435,3.86009797,2504.7,2502.5,3.9606602]
[1769878290633,4.06004797,2504.5,2502.1,0.00297105]
[1769878290834,3.86009797,2504.3,2502.1,0.00297105]
[1769878291034,3.86009797,2504.1,2502.1,0.00297105]
[1769878291233,3.86009797,2503.9,2502.1,0.00297105]
[1769878291426,3.86009797,2503.7,2502.1,0.00297105]
[1769878292030,3.86009797,2503.7,2502.1,2.34597105]
[1769878292331,3.86009797,2503.7,2502.3,2.343]
[1769878292533,3.86009797,2503.7,2502.3,3.9606602]
[1769878292731,3.86009797,2503.7,2502.7,2.343]
[1769878293132,3.86009797,2503.7,2502.9,2.343]
[1769878293429,3.86009797,2503.7,2502.1,0.00297105]
[1769878296434,3.86009797,2503.5,2502.1,0.00297105]
[1769878296938,3.86009797,2503.5,2502.2,2.343]
[1769878297341,3.86009797,2503.5,2502.3,2.343]
[1769878297541,3.86009797,2503.5,2502.2,2.343]
[1769878297734,3.86009797,2503.5,2501.2,3.64074846]
[1769878297930,3.86009797,2503.5,2501.2,3.84095846]
[1769878298132,3.86009797,2503.5,2501.6,3.64074846]
[1769878298838,3.86009797,2503.5,2501.6,3.64356273]
[1769878299840,3.84661107,2503.3,2501.6,3.64356273]
[1769878301540,3.98718438,2503.1,2501.6,0.00281427]
[1769878301738,3.98718438,2503.1,2501.6,3.99665959]
[1769878304240,3.98718438,2502.9,2501.6,0.00281427]
[1769878305345,3.98718438,2502.6,2500.2,3.99384532]
[1769878305540,3.98718438,2502.0,2500.2,3.99384532]
[1769878306442,4.18740438,2501.1,2499.5,3.99384532]
[1769878306643,3.98718438,2501.1,2499.2,4.30910882]
[1769878306847,3.98718438,2501.1,2499.2,3.99384532]
[1769878307049,3.98718438,2501.4,2499.2,3.99384532]
[1769878307249,3.98718438,2501.4,2499.5,3.99384532]
[1769878307446,3.98718438,2501.2,2499.5,0.00502565]
[1769878307650,7.77023372,2501.3,2498.6,3.99384532]
[1769878307651,3.98718438,2500.8,2498.6,3.99384532]
[1769878307844,3.98718438,2500.6,2498.6,3.99384532]
[1769878308044,3.98718438,2500.0,2497.7,3.99384532]
[1769878308350,3.98718438,2499.1,2497.1,3.99384532]
[1769878308650,3.98718438,2499.0,2497.1,3.9980091]
[1769878308839,3.98718438,2499.0,2497.1,0.00416378]
[1769878309240,3.98718438,2499.0,2495.5,2.345]
[1769878309241,3.98718438,2498.8,2496.4,3.99384532]
[1769878309440,3.98718438,2498.8,2495.1,3.99384532]
[1769878309441,3.98718438,2498.2,2495.1,3.99384532]
[1769878309646,2.31384183,2498.6,2495.8,3.99384532]
[1769878309849,3.98718438,2498.8,2496.3,3.99384532]
[1769878310044,0.00367377,2499.1,2496.6,3.99384532]
[1769878310246,0.00367377,2499.1,2497.1,3.99384532]
[1769878310446,3.98718438,2500.9,2498.1,3.99384532]
[1769878310648,3.98718438,2500.9,2498.3,3.99384532]
[1769878310846,3.98718438,2501.4,2498.3,3.99384532]
[1769878311053,3.98718438,2501.4,2497.2,0.20053]
[1769878311054,3.98718438,2501.4,2499.0,3.99384532]
[1769878311259,3.98718438,2501.4,2499.2,3.99384532]
[1769878311548,3.99110719,2501.4,2499.2,3.99696712]
[1769878312461,3.99110719,2501.4,2499.2,0.0031218]
[1769878312863,3.99110719,2501.4,2499.3,3.99384532]
[1769878313057,3.99110719,2501.4,2499.2,0.0031218]
[1769878313260,3.99110719,2501.4,2498.2,3.99384532]
[1769878313261,3.98718438,2500.6,2498.2,3.99384532]
[1769878313457,3.98718438,2500.4,2497.8,3.99384532]
[1769878313661,3.98718438,2499.9,2497.8,3.99384532]
[1769878314057,8.78284183,2500.5,2495.8,27.55]
[1769878314058,3.98718438,2499.0,2496.5,3.99384532]
[1769878314262,3.98718438,2498.8,2496.5,3.99857029]
[1769878314460,3.98718438,2498.6,2496.5,3.99857029]
[1769878314665,4.18760438,2498.6,2496.5,0.00472497]
[1769878314864,3.98718438,2498.4,2496.5,0.00472497]
[1769878315060,4.18762438,2498.4,2496.5,0.00472497]
[1769878315968,4.18773438,2497.0,2494.2,3.99384532]
[1769878316462,3.98718438,2497.0,2494.2,3.99384532]
[1769878316863,3.98718438,2498.2,2495.3,3.99384532]
[1769878317067,3.98718438,2498.2,2495.5,4.19450532]
[1769878317365,3.98718438,2498.6,2496.0,3.99384532]
[1769878317760,3.98718438,2498.6,2496.0,4.19447532]
[1769878317962,3.99114952,2498.6,2496.0,4.19812405]
[1769878319167,3.99114952,2498.6,2496.2,3.99384532]
[1769878319572,3.98718438,2497.6,2494.5,3.99384532]
[1769878319774,3.98718438,2497.3,2494.5,3.99384532]
[1769878320367,3.98718438,2497.3,2495.1,3.99749405]
[1769878320668,3.98718438,2497.3,2495.6,0.00364873]
[1769878320858,3.98718438,2497.3,2495.7,3.99384532]
[1769878321163,3.98718438,2498.5,2496.6,0.00364873]
[1769878321364,3.98718438,2498.5,2496.4,3.99384532]
[1769878322172,3.98718438,2498.5,2496.1,3.99384532]
[1769878322470,4.18761438,2498.5,2496.1,3.99384532]
[1769878323061,3.98718438,2498.5,2496.3,3.99384532]
[1769878323570,3.98718438,2498.5,2496.6,3.99384532]
[1769878323769,3.98718438,2498.5,2497.0,3.99384532]
[1769878323971,0.00396514,2498.6,2497.0,3.99682331]
[1769878324167,0.00396514,2498.6,2497.4,3.99749405]
[1769878324364,0.00396514,2498.6,2497.8,3.99384532]
[1769878324565,3.98718438,2499.4,2498.1,3.99384532]
[1769878324764,7.677,2500.7,2498.1,3.99384532]
[1769878324765,3.98718438,2499.8,2498.1,3.99384532]
[1769878325069,3.604,2500.7,2497.0,3.60697799]
[1769878325070,3.98718438,2500.6,2498.7,3.99384532]
[1769878325268,4.18736438,2501.6,2498.7,3.99384532]
[1769878325471,3.98718438,2501.4,2498.7,3.99384532]
[1769878325771,3.98718438,2501.4,2499.1,3.99384532]
[1769878325971,0.00396375,2501.6,2499.8,3.99384532]
[1769878326273,0.00396375,2501.6,2500.2,3.99384532]
[1769878326474,3.98718438,2502.6,2500.7,3.99384532]
[1769878326774,5.74440483,2504.0,2500.7,3.99384532]
[1769878326775,3.98718438,2503.3,2501.4,3.63460311]
[1769878326971,3.80596228,2504.3,2501.4,3.63460311]
[1769878327166,3.80596228,2504.3,2501.8,3.63460311]
[1769878327475,3.80596228,2504.3,2502.0,3.63460311]
[1769878327774,3.81041139,2504.3,2502.3,3.63460311]
[1769878327969,0.00444911,2504.3,2502.3,3.63460311]
[1769878328176,3.81041139,2504.3,2502.7,3.63460311]
[1769878328369,0.00444911,2504.3,2503.0,3.63460311]
[1769878328569,3.81041139,2504.3,2502.8,0.00364873]
[1769878328770,3.81041139,2504.3,2502.5,3.63460311]
[1769878328974,3.81041139,2504.3,2502.8,3.63460311]
[1769878329375,3.81041139,2504.3,2503.0,0.00364873]
[1769878329574,3.81041139,2504.3,2503.0,3.63825184]
[1769878329575,0.00444911,2504.3,2503.0,3.63825184]
[1769878329875,0.00444911,2504.3,2503.1,3.63825184]
[1769878330070,3.81041139,2504.3,2502.5,3.63460311]
[1769878330375,3.81041139,2504.3,2502.8,3.63460311]
[1769878330870,3.81041139,2504.3,2502.8,3.63825184]
[1769878331171,3.81041139,2504.3,2501.8,3.63460311]
[1769878331376,3.81041139,2504.3,2502.1,3.63460311]
[1769878331877,3.81041139,2504.3,2502.1,3.63825184]
[1769878332066,3.81041139,2504.3,2502.3,0.00364873]
[1769878332368,3.81041139,2504.3,2502.4,3.63460311]
[1769878332573,3.81041139,2504.3,2502.7,3.63460311]
[1769878333077,3.81041139,2504.3,2503.0,3.63460311]
[1769878333575,3.81041139,2504.3,2503.1,0.00364873]
[1769878333770,3.81041139,2504.3,2503.1,3.63825184]
[1769878333966,3.81041139,2504.3,2501.7,3.60718118]
[1769878333967,3.81041139,2504.3,2502.6,3.63460311]
[1769878334468,3.81041139,2504.3,2502.7,3.63460311]
[1769878334673,0.00444911,2504.3,2502.6,3.63460311]
[1769878334873,0.00444911,2504.3,2502.8,3.63460311]
[1769878335071,3.81041139,2504.3,2502.8,3.63460311]
[1769878335271,3.81041139,2504.3,2502.3,3.63460311]
[1769878336966,4.01037139,2504.3,2501.7,0.00518118]
[1769878337171,3.80596228,2504.2,2501.7,3.63978429]
[1769878337879,3.80596228,2504.2,2501.7,3.83994429]
[1769878338175,3.80596228,2504.2,2502.0,3.63460311]
[1769878338575,0.00444911,2504.3,2502.7,3.63460311]
[1769878338774,0.00444911,2504.3,2503.4,3.63825184]
[1769878338972,3.80596228,2505.1,2503.4,3.63460311]
[1769878339172,3.80596228,2505.5,2503.8,3.63460311]
[1769878339371,3.80596228,2505.5,2503.0,3.63460311]
[1769878339773,3.80596228,2505.5,2503.3,3.63460311]
[1769878340073,0.00328384,2505.5,2503.5,3.63460311]
[1769878340279,3.80924612,2505.5,2504.0,3.63460311]
[1769878340475,3.80924612,2505.5,2503.6,3.63460311]
[1769878340773,3.80924612,2505.5,2503.3,0.00419022]
[1769878340971,3.80596228,2505.0,2503.3,0.00419022]
[1769878341472,3.80596228,2504.7,2502.4,3.63460311]
[1769878342372,0.19998,2504.1,2502.4,0.00507706]
[1769878342573,3.80596228,2503.6,2502.4,0.1]
[1769878342779,3.80596228,2503.1,2500.8,3.63460311]
[1769878342977,3.998,2504.4,2500.8,3.63460311]
[1769878342978,3.80596228,2502.8,2500.8,3.63460311]
[1769878343378,3.80596228,2502.3,2499.9,3.63460311]
[1769878343578,3.80596228,2501.8,2499.9,3.63835157]
[1769878343983,3.80596228,2501.8,2500.0,3.63825184]
[1769878344478,3.80596228,2501.8,2499.9,0.00374846]
[1769878344479,3.80596228,2501.8,2500.2,3.63825184]
[1769878344781,3.80596228,2501.8,2499.9,0.00374846]
[1769878345570,3.80596228,2501.4,2499.9,0.00374846]
[1769878345876,4.00615228,2501.4,2499.9,0.00374846]
[1769878346479,3.80596228,2501.4,2499.9,3.6420003]
[1769878346781,3.80596228,2501.4,2499.9,3.63835157]
[1769878346981,3.80596228,2501.4,2500.0,0.00364873]
[1769878347476,3.80596228,2501.4,2500.3,0.00364873]
[1769878347676,3.80596228,2501.4,2500.0,0.00364873]
[1769878347872,3.80596228,2501.4,2499.9,0.00739719]
[1769878348079,3.80596228,2501.7,2500.0,0.00364873]
[1769878348277,3.80596228,2501.7,2500.1,0.00364873]
[1769878348481,3.80596228,2501.7,2500.0,3.63460311]
[1769878348784,3.80596228,2501.5,2499.9,0.00374846]
[1769878349683,3.80596228,2501.3,2499.9,0.00374846]
[1769878350079,3.80596228,2501.3,2500.1,0.00364873]
[1769878350280,3.80596228,2501.3,2500.4,0.00364873]
[1769878350478,3.80596228,2501.7,2500.4,0.00364873]
[1769878350882,3.80596228,2501.7,2500.5,0.00364873]
[1769878351084,3.80596228,2501.7,2500.4,0.00364873]
[1769878351577,3.80596228,2501.7,2500.5,0.00364873]
[1769878351873,3.80596228,2501.7,2499.9,0.00374846]
[1769878352072,3.80596228,2501.3,2500.0,0.00364873]
[1769878352278,3.80596228,2501.3,2500.0,3.63825184]
[1769878352478,3.80596228,2501.3,2500.2,0.00364873]
[1769878352684,3.80596228,2501.3,2500.1,0.00364873]
[1769878352984,3.80596228,2501.3,2499.9,0.00374846]
[1769878353286,3.80596228,2501.3,2500.0,0.00364873]
[1769878353577,3.80596228,2501.1,2499.2,3.63460311]
[1769878353975,3.80596228,2501.1,2499.7,3.63460311]
[1769878354382,3.598,2501.8,2500.2,3.63460311]
[1769878354583,3.80596228,2501.7,2500.2,3.6379514]
[1769878354878,3.80596228,2501.7,2500.3,0.00364873]
[1769878355078,3.80596228,2501.7,2500.4,0.00364873]
[1769878355282,3.80596228,2501.7,2500.3,0.00364873]
[1769878355479,3.80596228,2501.7,2500.7,0.00364873]
[1769878355881,3.80596228,2501.7,2500.9,0.00364873]
[1769878356085,3.80596228,2501.7,2500.8,0.00364873]
[1769878356281,3.80596228,2502.2,2501.1,0.00364873]
[1769878356579,3.80596228,2502.2,2500.8,3.63825184]
[1769878356785,3.80596228,2502.2,2500.7,0.00364873]
[1769878356985,3.80596228,2502.2,2500.2,0.00334829]
[1769878356986,3.80596228,2502.2,2500.5,0.00364873]
[1769878357281,3.80596228,2502.2,2500.2,0.00334829]
[1769878357282,3.80596228,2502.2,2500.7,0.00364873]
[1769878357587,3.85154132,2501.6,2499.0,3.78086975]
[1769878357785,3.85154132,2501.2,2499.0,3.78086975]
[1769878357981,3.85154132,2501.2,2499.3,3.78451848]
[1769878358185,3.85154132,2501.2,2499.6,3.78086975]
[1769878358388,3.85154132,2501.2,2498.8,0.2004]
[1769878358389,3.85154132,2501.2,2499.2,3.78086975]
[1769878358589,3.85154132,2501.2,2499.3,3.78451848]
[1769878358786,3.85154132,2501.2,2499.5,0.00364873]
[1769878359183,3.85154132,2501.2,2499.7,0.00364873]
[1769878359385,3.85154132,2501.2,2499.8,0.00364873]
[1769878359685,3.85154132,2501.2,2499.6,3.78086975]
[1769878359886,3.85154132,2501.2,2500.0,0.00364873]
[1769878360086,3.85154132,2501.2,2499.6,3.78086975]
[1769878360287,3.85154132,2501.2,2500.1,0.00364873]
[1769878360482,3.6,2501.7,2500.0,3.78086975]
[1769878360483,3.85154132,2501.6,2500.0,3.78086975]
[1769878360787,3.85154132,2501.6,2499.6,3.78451848]
[1769878360994,3.85154132,2501.6,2499.7,0.00364873]
[1769878361288,3.85154132,2501.6,2499.9,3.80325294]
[1769878361489,3.85154132,2501.6,2499.9,3.79960421]
[1769878361795,6.08249842,2501.4,2500.0,0.00364873]
[1769878362089,3.79614965,2501.2,2499.5,3.79960421]
[1769878362290,3.79614965,2501.2,2499.5,0.00364873]
[1769878362491,3.79614965,2501.2,2499.6,0.00364873]
[1769878362685,3.79614965,2501.0,2499.7,0.00364873]
[1769878362886,3.79614965,2501.0,2499.2,3.80428848]
[1769878363081,3.79614965,2501.0,2499.6,0.00364873]
[1769878363287,3.79614965,2500.1,2498.4,3.79960421]
[1769878363488,3.79614965,2499.9,2498.2,3.6]
[1769878363693,3.79614965,2499.9,2498.5,0.00364873]
[1769878363891,3.79614965,2499.9,2498.6,0.00364873]
[1769878364392,3.80021538,2499.9,2498.8,0.00364873]
[1769878364787,3.80021538,2499.9,2498.9,0.00364873]
[1769878364989,3.80021538,2499.9,2498.8,0.00364873]
[1769878365492,3.80021538,2499.9,2498.9,0.00364873]
[1769878365689,3.80021538,2499.9,2498.8,0.00364873]
[1769878366090,3.80021538,2499.9,2498.9,0.00364873]
[1769878366590,3.80021538,2499.9,2499.0,0.00364873]
[1769878366792,3.80021538,2499.9,2498.9,0.00364873]
[1769878366993,3.80021538,2499.9,2498.6,3.80447317]
[1769878367192,0.00406573,2499.9,2498.9,3.79960421]
[1769878367492,3.80021538,2499.9,2498.6,0.00486896]
[1769878368285,3.80021538,2499.9,2497.7,3.79960421]
[1769878368286,3.79614965,2499.6,2497.7,3.79960421]
[1769878368891,3.80021538,2499.9,2497.7,3.79960421]
[1769878369090,3.79614965,2499.7,2497.7,3.79960421]
[1769878369286,0.00406573,2499.9,2497.7,3.79960421]
[1769878369494,0.00406573,2499.9,2498.0,3.79960421]
[1769878369998,3.79614965,2500.9,2498.8,3.79960421]
[1769878370193,9.1930295,2500.8,2498.8,3.79960421]
[1769878370397,3.79614965,2500.8,2498.8,3.79960421]
[1769878370602,3.79614965,2500.6,2498.8,3.79960421]
[1769878370798,0.00358852,2500.6,2498.8,4.00300275]
[1769878370994,0.00358852,2500.6,2499.0,3.79960421]
[1769878371191,0.00358852,2500.6,2499.1,0.20038]
[1769878371393,5.88834877,2501.6,2499.4,3.79960421]
[1769878371590,5.40918279,2501.5,2499.4,3.79960421]
[1769878371792,5.40918279,2501.4,2499.4,3.79960421]
[1769878371993,3.79614965,2501.2,2499.4,3.79960421]
[1769878372201,3.79614965,2500.9,2499.4,3.79960421]
[1769878372395,3.79614965,2500.7,2498.9,3.79960421]
[1769878372596,5.41079955,2500.6,2498.9,3.79960421]
[1769878372792,5.42156062,2500.5,2498.9,3.79960421]
[1769878372996,3.79614965,2500.6,2498.9,3.79960421]
[1769878373192,5.4262011,2500.5,2498.9,3.79960421]
[1769878373397,5.4262011,2500.4,2498.9,3.79960421]
[1769878373699,5.42593319,2500.3,2498.9,3.79960421]
[1769878373900,2.33774768,2500.5,2498.9,3.79960421]
[1769878374097,34.04784497,2501.4,2499.5,0.20034]
[1769878374297,3.79614965,2501.5,2499.5,0.20034]
[1769878374698,3.79614965,2501.5,2499.1,2.55630403]
[1769878374901,3.79614965,2501.5,2498.9,0.06960578]
[1769878374902,4.01410417,2501.3,2498.8,0.00299854]
[1769878375100,4.01724586,2501.3,2498.8,0.00299854]
[1769878375294,4.01724586,2501.3,2498.8,0.20339854]
[1769878375903,4.01410417,2501.2,2498.8,0.20339854]
[1769878376103,4.01410417,2501.2,2498.9,0.20039]
[1769878376304,4.01410417,2501.2,2499.0,0.20038]
[1769878376809,0.00314169,2501.3,2498.8,0.00299854]
[1769878376810,4.01410417,2501.0,2498.8,0.00299854]
[1769878377203,4.01410417,2501.0,2498.9,0.20039]
[1769878377404,4.01410417,2500.8,2498.8,0.00299854]
[1769878379011,0.00314327,2500.4,2498.8,0.00299854]
[1769878379211,4.01410417,2500.3,2498.8,0.00299854]
[1769878379811,4.01410417,2500.8,2498.8,0.00299854]
[1769878380011,4.01410417,2500.8,2499.0,0.20038]
[1769878380413,4.01410417,2500.6,2498.8,0.00299854]
[1769878380613,4.01410417,2500.3,2498.8,0.00299854]
[1769878380811,4.01410417,2500.3,2498.8,0.20339854]
[1769878381107,5.74440483,2501.1,2498.0,3.602]
[1769878381108,4.01410417,2499.3,2498.0,3.602]
[1769878381613,4.54352458,2499.8,2496.1,3.602]
[1769878381614,4.01410417,2498.5,2496.1,3.602]
[1769878381915,4.01410417,2498.5,2495.7,2.55630403]
[1769878381916,4.01410417,2498.5,2496.0,0.20062]
[1769878382113,4.01410417,2498.2,2496.0,0.20353218]
[1769878382507,0.00481588,2498.5,2496.0,0.00291218]
[1769878382809,4.01892005,2498.5,2496.6,0.20058]
[1769878383008,4.01892005,2498.5,2496.7,3.602]
[1769878383207,4.02206332,2498.5,2496.6,0.20058]
[1769878383409,4.01892005,2498.5,2496.6,0.20058]
[1769878383604,4.01410417,2498.3,2496.6,0.20058]
[1769878384409,4.01410417,2498.3,2496.0,0.00291218]
[1769878384619,4.01410417,2498.1,2496.1,3.602]
[1769878385011,4.01410417,2498.1,2496.1,3.80262]
[1769878385316,4.01724744,2497.9,2496.1,0.20062]
[1769878385516,4.01410417,2497.9,2496.1,0.20062]
[1769878386012,4.01410417,2498.3,2496.0,3.60591218]
[1769878386212,4.01410417,2498.3,2496.5,0.20058]
[1769878386409,4.01410417,2498.3,2496.0,0.00291218]
[1769878386614,3.89216042,2496.4,2493.7,0.2438875]
[1769878386807,0.20062,2496.1,2493.7,0.2438875]
[1769878387011,3.88693244,2495.9,2493.4,3.603]
[1769878387319,3.88693244,2495.7,2493.4,3.87017757]
[1769878387511,3.89097902,2495.7,2493.5,0.26717757]
[1769878387714,3.88693244,2495.1,2493.4,0.00435838]
[1769878388118,3.88693244,2495.1,2493.4,0.27153595]
[1769878388414,3.88693244,2495.5,2493.6,0.26717757]
[1769878388719,0.00404658,2495.7,2494.3,0.26717757]
[1769878388916,0.00404658,2495.7,2494.4,6.22017757]
[1769878389313,3.93090874,2495.7,2494.4,5.953]
[1769878389720,3.93090874,2495.7,2494.3,0.18731814]
[1769878390018,3.93090874,2495.7,2494.4,3.605]
[1769878390407,3.93090874,2495.7,2493.7,0.18731814]
[1769878390711,3.92686216,2495.1,2493.4,0.00435838]
[1769878390915,3.94664651,2494.6,2493.4,0.00435838]
[1769878391112,3.94664651,2494.6,2492.1,25.237]
[1769878391113,3.94664651,2494.2,2491.5,0.06978752]
[1769878391316,3.94664651,2493.2,2490.6,0.14774944]
[1769878392111,3.95061174,2493.2,2490.6,0.00407351]
[1769878392317,3.94460975,2491.4,2489.3,0.15182295]
[1769878392521,3.94460975,2491.4,2489.4,0.15182295]
[1769878392711,3.94460975,2491.4,2489.6,0.15182295]
[1769878392914,3.9809585,2492.3,2490.2,0.07912545]
[1769878393118,3.9809585,2492.3,2490.7,0.07912545]
[1769878393422,3.98489808,2492.3,2490.8,3.606]
[1769878394015,3.98489808,2492.3,2490.8,3.68512545]
[1769878394219,3.98489808,2492.3,2490.9,0.07912545]
[1769878394415,3.9809585,2494.4,2490.9,0.07912545]
[1769878394721,3.9809585,2494.1,2491.3,0.07912545]
[1769878395221,3.9809585,2494.1,2491.7,0.03522851]
[1769878395411,3.98925286,2494.1,2491.9,0.03522851]
[1769878395615,4.00290698,2493.7,2491.9,0.03522851]
[1769878395815,4.00290698,2493.7,2491.8,0.20096]
[1769878396714,4.00290698,2493.5,2491.8,0.20096]
[1769878397621,4.00290698,2493.5,2491.9,0.20096]
[1769878398422,4.00290698,2493.5,2492.0,5.961]
[1769878398913,4.02052123,2494.0,2492.2,0.20093]
[1769878400118,4.02052123,2494.0,2491.3,0.201]
[1769878400317,4.02052123,2494.0,2490.7,0.00449269]
[1769878400318,4.02052123,2494.0,2491.4,5.961]
[1769878400912,4.02052123,2494.0,2491.5,5.961]
[1769878401117,4.02052123,2494.0,2492.5,0.20091]
[1769878401317,4.02052123,2494.0,2492.6,0.20089]
[1769878401524,0.00515109,2494.1,2492.5,0.00468832]
[1769878401722,4.02567232,2494.1,2492.5,0.00468832]
[1769878402127,4.02567232,2494.1,2492.9,0.20087]
[1769878402325,4.02567232,2494.1,2493.0,5.961]
[1769878402525,4.0236645,2494.0,2493.0,5.961]
[1769878402825,2.351,2496.4,2493.0,5.961]
[1769878402826,4.02052123,2494.9,2493.0,5.961]
[1769878403027,4.02052123,2494.9,2492.5,0.00468832]
[1769878403223,4.02052123,2494.6,2493.2,0.20085]
[1769878403425,4.02052123,2494.6,2493.3,0.20084]
[1769878403928,4.02541551,2494.6,2493.6,0.20082]
[1769878404131,4.02052123,2495.0,2493.8,0.2008]
[1769878404529,0.00314327,2494.8,2493.8,0.2008]
[1769878404727,4.02052123,2495.0,2493.9,0.20079]
[1769878405028,4.02052123,2495.0,2494.0,0.20078]
[1769878405332,4.02397134,2495.0,2494.0,0.20078]
[1769878405725,4.02052123,2494.8,2494.0,0.20078]
[1769878406126,0.00314327,2494.7,2494.0,0.20078]
[1769878406429,0.00314327,2494.6,2494.0,0.20078]
[1769878406731,0.00314327,2494.6,2494.0,3.61]
[1769878406927,0.00314327,2494.4,2494.0,3.61]
[1769878407128,4.02052123,2494.4,2494.0,3.61]
[1769878407329,0.00314327,2494.3,2494.0,3.61]
[1769878407530,0.00314327,2494.1,2494.0,3.61]
[1769878407833,4.0236645,2494.4,2494.0,3.0887543]
[1769878408228,4.0236645,2494.1,2493.3,3.61]
[1769878408424,4.02052123,2494.1,2493.3,3.61]
[1769878408629,0.00314327,2493.9,2493.3,3.61]
[1769878408927,4.02052123,2494.9,2493.3,3.61]
[1769878409333,4.02052123,2494.7,2492.3,0.20092]
[1769878410028,4.02052123,2494.7,2492.4,0.20092]
[1769878410332,4.02052123,2494.7,2492.1,3.61]
[1769878410630,4.02052123,2494.7,2491.1,0.20102]
[1769878410631,4.02052123,2494.2,2491.1,0.20102]
[1769878411028,4.02052123,2494.2,2490.3,0.20108]
[1769878411029,3.7257433,2493.3,2490.3,0.20108]
[1769878411328,3.7257433,2492.8,2489.8,3.09744187]
[1769878411534,3.7257433,2492.5,2490.2,0.00414129]
[1769878411731,3.7257433,2492.3,2490.2,0.00414129]
[1769878412432,3.7257433,2492.3,2489.2,0.06984936]
[1769878412628,3.7257433,2491.1,2488.6,2.90046316]
[1769878412931,3.7257433,2491.1,2488.8,2.90046316]
[1769878413338,3.7257433,2491.1,2488.3,2.89424548]
[1769878413530,3.7257433,2491.1,2488.4,2.353]
[1769878413729,3.7257433,2491.1,2488.8,2.89424548]
[1769878413928,3.7257433,2491.1,2489.3,2.89424548]
[1769878414134,3.7257433,2491.5,2489.4,2.89424548]
[1769878414335,3.7257433,2491.5,2488.9,2.89424548]
[1769878414534,3.7257433,2491.5,2489.0,5.964]
[1769878414731,3.7257433,2491.5,2488.9,2.89424548]
[1769878414933,3.7257433,2491.5,2489.0,5.964]
[1769878415234,3.7257433,2491.5,2489.1,3.0331971]
[1769878415434,3.7257433,2491.5,2489.1,3.2343771]
[1769878415636,3.7257433,2491.5,2488.6,3.0331971]
[1769878415831,3.7257433,2491.0,2488.3,3.03617651]
[1769878416034,3.72904004,2491.0,2488.3,3.03617651]
[1769878416234,3.7257433,2490.7,2488.3,0.00297941]
[1769878416435,3.9268033,2490.7,2488.3,0.00297941]
[1769878416831,3.9268033,2490.7,2488.4,3.612]
[1769878417136,3.9268033,2490.7,2488.3,0.00297941]
[1769878417137,3.7257433,2490.7,2488.5,3.612]
[1769878417537,3.7257433,2490.7,2488.5,6.80948718]
[1769878417730,3.7257433,2490.7,2488.6,2.99625718]
[1769878417928,3.7257433,2490.7,2488.5,3.612]
[1769878418136,3.88624577,2490.3,2488.3,0.00297941]
[1769878418839,3.88624577,2490.3,2488.3,3.20047659]
[1769878419229,3.88624577,2490.3,2488.3,0.00297941]
[1769878419742,3.88624577,2490.3,2488.4,3.613]
[1769878420534,3.88624577,2490.3,2487.6,3.15474609]
[1769878420535,3.88624577,2490.3,2486.2,2.9564255]
[1769878420737,3.88624577,2488.9,2486.8,2.9564255]
[1769878420939,3.88624577,2488.9,2487.0,3.007826]
[1769878421240,3.88624577,2488.9,2487.4,3.20697939]
[1769878421435,3.99717618,2490.9,2488.6,3.20688939]
[1769878421640,4.00042866,2490.9,2488.6,0.00328475]
[1769878421941,3.99717618,2490.6,2488.6,0.00328475]
[1769878422340,4.19825618,2490.4,2488.6,0.00328475]
[1769878422539,0.00325248,2490.9,2487.4,0.20132]
[1769878422540,3.99717618,2490.1,2487.4,0.20132]
[1769878422737,3.99717618,2490.1,2487.6,0.2013]
[1769878422932,3.99717618,2489.6,2486.8,0.20137]
[1769878423249,3.99717618,2488.7,2486.7,0.20137]
[1769878423546,3.99717618,2488.1,2486.7,0.00328902]
[1769878423843,4.19844618,2488.1,2485.5,3.615]
[1769878424135,3.99717618,2487.9,2485.3,3.81649]
[1769878424337,3.99717618,2487.9,2485.3,3.615]
[1769878424538,3.99717618,2487.9,2485.4,0.20148]
[1769878424849,3.99717618,2487.9,2485.5,0.20147]
[1769878425241,3.99717618,2487.7,2485.4,0.00374905]
[1769878425539,3.99717618,2487.5,2485.4,0.00374905]
[1769878426434,3.99717618,2487.5,2484.2,0.07000132]
[1769878426435,3.99717618,2486.9,2483.7,4.66435739]
[1769878426639,4.19853618,2486.9,2483.7,4.66435739]
[1769878426835,3.99717618,2486.4,2483.4,0.07001118]
[1769878427139,3.99717618,2486.4,2481.5,1.37142827]
[1769878427140,3.99717618,2484.5,2481.8,1.44143945]
[1769878427343,0.20141,2486.3,2483.2,1.44143945]
[1769878427539,0.18171414,2486.3,2483.6,3.77474538]
[1769878427838,0.00343953,2486.3,2484.0,3.77474538]
[1769878428239,0.00343953,2486.3,2483.5,3.77474538]
[1769878428445,0.00343953,2486.3,2483.3,0.20165]
[1769878428446,0.00343953,2486.3,2483.8,3.77474538]
[1769878428742,0.00343953,2486.3,2484.2,3.77474538]
[1769878428942,0.00343953,2486.3,2484.6,3.77474538]
[1769878429140,0.20125,2488.3,2485.2,0.00374905]
[1769878429338,3.99717618,2488.2,2485.4,3.77474538]
[1769878429735,3.99717618,2488.2,2485.9,3.77474538]
[1769878429939,3.99717618,2488.2,2486.1,3.77474538]
[1769878430442,3.99717618,2488.2,2485.4,3.77474538]
[1769878430636,3.99717618,2487.6,2484.5,0.20155]
[1769878430939,4.00037197,2487.6,2484.9,3.97626538]
[1769878431144,4.00037197,2487.6,2485.2,3.77474538]
[1769878431839,4.00037197,2487.6,2484.9,0.20152]
[1769878432042,4.00037197,2487.6,2485.1,0.00374905]
[1769878432245,4.00037197,2487.6,2485.1,3.77474538]
[1769878432541,4.00037197,2487.6,2485.0,3.77474538]
[1769878432755,4.00037197,2487.6,2485.8,3.97619538]
[1769878432943,4.00037197,2487.6,2485.6,3.619]
[1769878433448,4.00037197,2487.6,2485.7,3.77474538]
[1769878433650,4.00037197,2487.6,2485.6,0.00374905]
[1769878433844,4.00037197,2487.6,2484.6,0.27153358]
[1769878434044,3.99717618,2486.8,2483.9,3.97634538]
[1769878434242,3.99717618,2486.8,2483.9,3.77474538]
[1769878434445,3.99717618,2485.9,2483.0,3.77474538]
[1769878434641,3.99717618,2485.2,2482.5,3.97646538]
[1769878434850,3.99717618,2485.2,2482.7,3.77474538]
[1769878435051,3.99717618,2485.2,2482.9,3.77474538]
[1769878435344,3.619,2486.7,2482.2,3.68905134]
[1769878435345,3.99717618,2485.7,2484.0,3.97633538]
[1769878435547,0.20132,2487.4,2482.6,0.2017]
[1769878435548,3.99717618,2487.3,2484.2,3.77474538]
[1769878435752,3.99717618,2486.0,2483.1,0.20166]
[1769878435949,3.99717618,2486.0,2482.9,3.77660896]